[Event "Titled Tuesday Blitz April 11 Early 2023"]
[White "Sadhwani, Raunak"]
[Black "Anton Guijarro, David"]
[WhiteFideId "35093487"]
[BlackFideId "2285525"]
[WhiteElo "2631"]
[BlackElo "2618"]
[Result "1/2-1/2"]
[Round "08"]
[TimeControl "180+2"]
[Date "2023.04.11"]
[WhiteClock "0:00:06"]
[BlackClock "0:00:10"]

1. Nf3 {[%clk 0:02:52]}  d5 {[%clk 0:02:56]} 2. b3 {[%clk 0:02:52]}  Bf5 {[%clk 0:02:55]} 3. Bb2 {[%clk 0:02:52]}  e6 {[%clk 0:02:55]} 4. e3 {[%clk 0:02:52]}  h6 {[%clk 0:02:53]} 5. d4 {[%clk 0:02:52]}  Nf6 {[%clk 0:02:53]} 6. Bd3 {[%clk 0:02:53]}  Bxd3 {[%clk 0:02:51]} 7. Qxd3 {[%clk 0:02:54]}  Nbd7 {[%clk 0:02:50]} 8. O-O {[%clk 0:02:54]}  c6 {[%clk 0:02:49]} 9. Nbd2 {[%clk 0:02:55]}  a5 {[%clk 0:02:47]} 10. a3 {[%clk 0:02:55]}  Bd6 {[%clk 0:02:42]} 11. c4 {[%clk 0:02:54]}  O-O {[%clk 0:02:42]} 12. e4 {[%clk 0:02:54]}  dxe4 {[%clk 0:02:42]} 13. Nxe4 {[%clk 0:02:55]}  Nxe4 {[%clk 0:02:42]} 14. Qxe4 {[%clk 0:02:56]}  Nf6 {[%clk 0:02:43]} 15. Qc2 {[%clk 0:02:55]}  a4 {[%clk 0:02:37]} 16. bxa4 {[%clk 0:02:47]}  Qa5 {[%clk 0:02:33]} 17. d5 {[%clk 0:02:47]}  cxd5 {[%clk 0:02:29]} 18. Bxf6 {[%clk 0:02:47]}  gxf6 {[%clk 0:02:29]} 19. cxd5 {[%clk 0:02:47]}  Qxd5 {[%clk 0:02:25]} 20. Rfd1 {[%clk 0:02:45]}  Qc5 {[%clk 0:02:22]} 21. Qd2 {[%clk 0:02:45]}  Be7 {[%clk 0:02:11]} 22. Qxh6 {[%clk 0:02:00]}  Rxa4 {[%clk 0:02:09]} 23. h3 {[%clk 0:02:00]}  Rfa8 {[%clk 0:01:26]} 24. Rac1 {[%clk 0:01:54]}  Qf5 {[%clk 0:01:07]} 25. Rc7 {[%clk 0:00:43]}  Bf8 {[%clk 0:01:07]} 26. Qd2 {[%clk 0:00:43]}  Rxa3 {[%clk 0:00:57]} 27. Rxb7 {[%clk 0:00:43]}  Ra1 {[%clk 0:00:55]} 28. Rd7 {[%clk 0:00:26]}  Rxd1+ {[%clk 0:00:51]} 29. Qxd1 {[%clk 0:00:27]}  Rb8 {[%clk 0:00:51]} 30. Qe2 {[%clk 0:00:23]}  Rb1+ {[%clk 0:00:41]} 31. Rd1 {[%clk 0:00:24]}  Rxd1+ {[%clk 0:00:39]} 32. Qxd1 {[%clk 0:00:25]}  Qe4 {[%clk 0:00:38]} 33. g3 {[%clk 0:00:19]}  Bc5 {[%clk 0:00:36]} 34. h4 {[%clk 0:00:18]}  Kg7 {[%clk 0:00:32]} 35. Kg2 {[%clk 0:00:14]}  e5 {[%clk 0:00:30]} 36. h5 {[%clk 0:00:11]}  Qg4 {[%clk 0:00:25]} 37. Qd5 {[%clk 0:00:09]}  Bf8 {[%clk 0:00:20]} 38. Nh4 {[%clk 0:00:09]}  Qxh5 {[%clk 0:00:21]} 39. Qe4 {[%clk 0:00:09]}  Qg5 {[%clk 0:00:19]} 40. Nf5+ {[%clk 0:00:09]}  Kg8 {[%clk 0:00:20]} 41. Qf3 {[%clk 0:00:08]}  Qg6 {[%clk 0:00:20]} 42. Ne3 {[%clk 0:00:08]}  Bh6 {[%clk 0:00:20]} 43. Nd5 {[%clk 0:00:08]}  Kg7 {[%clk 0:00:19]} 44. Ne7 {[%clk 0:00:09]}  Qg5 {[%clk 0:00:19]} 45. Qe4 {[%clk 0:00:05]}  Kf8 {[%clk 0:00:10]} 46. Nf5 {[%clk 0:00:06]}  Kg8 {[%clk 0:00:10]} 47. f3 {[%clk 0:00:04]}  Bf8 {[%clk 0:00:09]} 48. g4 {[%clk 0:00:02]}  Qg6 {[%clk 0:00:09]} 49. Qe2 {[%clk 0:00:02]}  Qg5 {[%clk 0:00:09]} 50. Qe4 {[%clk 0:00:03]}  Qc1 {[%clk 0:00:08]} 51. Qe2 {[%clk 0:00:02]}  Bh6 {[%clk 0:00:07]} 52. Qf2 {[%clk 0:00:02]}  Bf8 {[%clk 0:00:06]} 53. Qh4 {[%clk 0:00:02]}  Qg5 {[%clk 0:00:05]} 54. Qxg5+ {[%clk 0:00:02]}  fxg5 {[%clk 0:00:06]} 55. Kf2 {[%clk 0:00:03]}  f6 {[%clk 0:00:06]} 56. Ke3 {[%clk 0:00:04]}  Kf7 {[%clk 0:00:07]} 57. Ke4 {[%clk 0:00:05]}  Ke6 {[%clk 0:00:07]} 58. Ne3 {[%clk 0:00:05]}  Bc5 {[%clk 0:00:08]} 59. Nd5 {[%clk 0:00:06]}  Bf8 {[%clk 0:00:08]} 60. Nc7+ {[%clk 0:00:06]}  Kd7 {[%clk 0:00:08]} 61. Nb5 {[%clk 0:00:05]}  Ke6 {[%clk 0:00:09]} 62. Nc7+ {[%clk 0:00:05]}  Kd7 {[%clk 0:00:09]} 63. Nd5 {[%clk 0:00:06]}  Ke6 {[%clk 0:00:09]} 64. Ne3 {[%clk 0:00:05]}  Bc5 {[%clk 0:00:09]} 65. Nf5 {[%clk 0:00:06]}  Bf8 {[%clk 0:00:10]} 66. Ng3 {[%clk 0:00:06]}  Bc5 {[%clk 0:00:09]} 67. Nh5 {[%clk 0:00:07]}  Bf8 {[%clk 0:00:09]} 68. Ng3 {[%clk 0:00:07]}  Bc5 {[%clk 0:00:09]} 69. Ne2 {[%clk 0:00:08]}  Bf8 {[%clk 0:00:09]} 70. Nc3 {[%clk 0:00:08]}  Bc5 {[%clk 0:00:10]} 71. Nd5 {[%clk 0:00:06]}  Bf8 {[%clk 0:00:10]} 1/2-1/2


[Site "https://www.chess.com"]

[Event "Titled Tuesday Blitz April 11 Early 2023"]
[White "Kuzubov, Yuriy"]
[Black "So, Wesley"]
[WhiteFideId "14112906"]
[BlackFideId "5202213"]
[WhiteElo "2496"]
[BlackElo "2749"]
[Result "1-0"]
[Round "08"]
[TimeControl "180+2"]
[Date "2023.04.11"]
[WhiteClock "0:00:36"]
[BlackClock "0:00:01"]

1. d4 {[%clk 0:03:00]}  Nf6 {[%clk 0:02:54]} 2. c4 {[%clk 0:03:00]}  e6 {[%clk 0:02:54]} 3. Nc3 {[%clk 0:03:00]}  d5 {[%clk 0:02:54]} 4. cxd5 {[%clk 0:03:00]}  exd5 {[%clk 0:02:55]} 5. Bg5 {[%clk 0:03:00]}  Bb4 {[%clk 0:02:54]} 6. e3 {[%clk 0:02:58]}  h6 {[%clk 0:02:55]} 7. Bxf6 {[%clk 0:02:43]}  Qxf6 {[%clk 0:02:56]} 8. Bd3 {[%clk 0:02:40]}  c6 {[%clk 0:02:53]} 9. Ne2 {[%clk 0:02:40]}  O-O {[%clk 0:02:53]} 10. O-O {[%clk 0:02:40]}  Re8 {[%clk 0:02:53]} 11. a3 {[%clk 0:02:37]}  Bf8 {[%clk 0:02:48]} 12. b4 {[%clk 0:02:37]}  a6 {[%clk 0:02:47]} 13. Qb1 {[%clk 0:02:31]}  Nd7 {[%clk 0:02:44]} 14. a4 {[%clk 0:02:29]}  Nb6 {[%clk 0:02:40]} 15. a5 {[%clk 0:02:22]}  Nd7 {[%clk 0:02:38]} 16. Na4 {[%clk 0:02:23]}  Bd6 {[%clk 0:02:22]} 17. Qb2 {[%clk 0:02:19]}  Qe7 {[%clk 0:02:14]} 18. Rab1 {[%clk 0:02:15]}  Nf6 {[%clk 0:02:02]} 19. h3 {[%clk 0:02:04]}  Bc7 {[%clk 0:01:57]} 20. Rfe1 {[%clk 0:02:01]}  Qd6 {[%clk 0:01:56]} 21. Ng3 {[%clk 0:02:00]}  h5 {[%clk 0:01:55]} 22. Nc5 {[%clk 0:01:55]}  h4 {[%clk 0:01:50]} 23. Nf1 {[%clk 0:01:55]}  Rb8 {[%clk 0:01:50]} 24. f4 {[%clk 0:01:51]}  Nh5 {[%clk 0:01:38]} 25. Qf2 {[%clk 0:01:47]}  Qf6 {[%clk 0:01:38]} 26. Be2 {[%clk 0:01:35]}  Bf5 {[%clk 0:01:28]} 27. Rbc1 {[%clk 0:01:27]}  Qh6 {[%clk 0:01:18]} 28. Bg4 {[%clk 0:01:18]}  Bxg4 {[%clk 0:00:52]} 29. hxg4 {[%clk 0:01:17]}  Ng3 {[%clk 0:00:53]} 30. g5 {[%clk 0:01:12]}  Qg6 {[%clk 0:00:40]} 31. Nxg3 {[%clk 0:01:11]}  hxg3 {[%clk 0:00:41]} 32. Qxg3 {[%clk 0:01:12]}  Re7 {[%clk 0:00:42]} 33. Kf2 {[%clk 0:01:05]}  Qf5 {[%clk 0:00:34]} 34. Qh3 {[%clk 0:01:03]}  Qxh3 {[%clk 0:00:27]} 35. gxh3 {[%clk 0:01:04]}  Bd6 {[%clk 0:00:27]} 36. Re2 {[%clk 0:00:59]}  g6 {[%clk 0:00:26]} 37. h4 {[%clk 0:00:56]}  Kg7 {[%clk 0:00:26]} 38. Rh1 {[%clk 0:00:56]}  Rh8 {[%clk 0:00:25]} 39. Nd3 {[%clk 0:00:55]}  Re4 {[%clk 0:00:20]} 40. Kf3 {[%clk 0:00:53]}  Rh7 {[%clk 0:00:19]} 41. Rb2 {[%clk 0:00:49]}  Rh8 {[%clk 0:00:19]} 42. Nf2 {[%clk 0:00:48]}  Re7 {[%clk 0:00:19]} 43. Ng4 {[%clk 0:00:48]}  Re6 {[%clk 0:00:19]} 44. Ne5 {[%clk 0:00:44]}  Re7 {[%clk 0:00:17]} 45. Ke2 {[%clk 0:00:42]}  f5 {[%clk 0:00:16]} 46. gxf6+ {[%clk 0:00:41]}  Kxf6 {[%clk 0:00:17]} 47. Kf3 {[%clk 0:00:41]}  Reh7 {[%clk 0:00:16]} 48. Rg2 {[%clk 0:00:41]}  Rg7 {[%clk 0:00:12]} 49. Rhg1 {[%clk 0:00:38]}  Rhg8 {[%clk 0:00:10]} 50. Ng4+ {[%clk 0:00:36]}  Ke7 {[%clk 0:00:06]} 51. Nh6 {[%clk 0:00:36]}  Rh8 {[%clk 0:00:01]} 52. Nf5+ {[%clk 0:00:36]} 1-0


[Site "https://www.chess.com"]

[Event "Titled Tuesday Blitz April 11 Early 2023"]
[White "Xiong, Jeffery"]
[Black "Durarbayli, Vasif"]
[WhiteFideId "2047640"]
[BlackFideId "13402935"]
[WhiteElo "2726"]
[BlackElo "2551"]
[Result "1/2-1/2"]
[Round "08"]
[TimeControl "180+2"]
[Date "2023.04.11"]
[WhiteClock "0:01:38"]
[BlackClock "0:00:40"]

1. e4 {[%clk 0:03:00]}  c5 {[%clk 0:02:59]} 2. Nf3 {[%clk 0:03:01]}  d6 {[%clk 0:02:59]} 3. Nc3 {[%clk 0:03:01]}  Nf6 {[%clk 0:02:58]} 4. d4 {[%clk 0:03:02]}  cxd4 {[%clk 0:02:58]} 5. Qxd4 {[%clk 0:03:02]}  g6 {[%clk 0:02:53]} 6. Nd5 {[%clk 0:03:02]}  Bg7 {[%clk 0:02:51]} 7. Bg5 {[%clk 0:02:28]}  Nc6 {[%clk 0:02:50]} 8. Qd3 {[%clk 0:02:28]}  Nxd5 {[%clk 0:02:20]} 9. exd5 {[%clk 0:02:29]}  Bf5 {[%clk 0:02:15]} 10. Qd2 {[%clk 0:02:25]}  Ne5 {[%clk 0:02:01]} 11. Nxe5 {[%clk 0:02:26]}  Bxe5 {[%clk 0:02:01]} 12. c3 {[%clk 0:02:26]}  O-O {[%clk 0:01:57]} 13. Be2 {[%clk 0:02:27]}  Re8 {[%clk 0:01:50]} 14. O-O {[%clk 0:02:27]}  a6 {[%clk 0:01:50]} 15. a4 {[%clk 0:02:27]}  Rc8 {[%clk 0:01:48]} 16. Be3 {[%clk 0:02:26]}  e6 {[%clk 0:01:44]} 17. dxe6 {[%clk 0:02:25]}  Bxe6 {[%clk 0:01:35]} 18. Bf3 {[%clk 0:02:25]}  b5 {[%clk 0:01:19]} 19. axb5 {[%clk 0:02:25]}  axb5 {[%clk 0:01:20]} 20. Bd5 {[%clk 0:02:21]}  Bxd5 {[%clk 0:01:14]} 21. Qxd5 {[%clk 0:02:22]}  Qh4 {[%clk 0:01:12]} 22. g3 {[%clk 0:02:16]}  Qc4 {[%clk 0:01:13]} 23. Rfd1 {[%clk 0:02:16]}  b4 {[%clk 0:01:12]} 24. Qxc4 {[%clk 0:02:13]}  Rxc4 {[%clk 0:01:13]} 25. Ra4 {[%clk 0:02:13]}  Rb8 {[%clk 0:00:59]} 26. f4 {[%clk 0:02:06]}  Bf6 {[%clk 0:00:45]} 27. Rxb4 {[%clk 0:01:37]}  Rcxb4 {[%clk 0:00:43]} 28. cxb4 {[%clk 0:01:38]}  Rxb4 {[%clk 0:00:41]} 29. Rxd6 {[%clk 0:01:38]}  Bxb2 {[%clk 0:00:40]} 30. Rb6 {[%clk 0:01:38]} 1/2-1/2


[Site "https://www.chess.com"]

[Event "Titled Tuesday Blitz April 11 Early 2023"]
[White "Makarian, Rudik"]
[Black "Kamsky, Gata"]
[WhiteFideId "44105681"]
[BlackFideId "2000024"]
[WhiteElo "2430"]
[BlackElo "2660"]
[Result "1/2-1/2"]
[Round "08"]
[TimeControl "180+2"]
[Date "2023.04.11"]
[WhiteClock "0:00:08"]
[BlackClock "0:00:11"]

1. d4 {[%clk 0:03:00]}  d5 {[%clk 0:02:53]} 2. c4 {[%clk 0:03:01]}  c6 {[%clk 0:02:53]} 3. Nf3 {[%clk 0:03:01]}  Nf6 {[%clk 0:02:53]} 4. Nc3 {[%clk 0:03:02]}  a6 {[%clk 0:02:53]} 5. g3 {[%clk 0:03:02]}  Bf5 {[%clk 0:02:49]} 6. Bg2 {[%clk 0:02:57]}  e6 {[%clk 0:02:49]} 7. O-O {[%clk 0:02:58]}  h6 {[%clk 0:02:47]} 8. Nd2 {[%clk 0:02:58]}  Nbd7 {[%clk 0:02:46]} 9. e4 {[%clk 0:02:59]}  dxe4 {[%clk 0:02:45]} 10. Ndxe4 {[%clk 0:03:00]}  Nxe4 {[%clk 0:02:43]} 11. Nxe4 {[%clk 0:03:00]}  Be7 {[%clk 0:02:18]} 12. Nc3 {[%clk 0:02:44]}  O-O {[%clk 0:02:07]} 13. Be3 {[%clk 0:02:40]}  Nf6 {[%clk 0:01:59]} 14. h3 {[%clk 0:02:39]}  Qd7 {[%clk 0:01:55]} 15. g4 {[%clk 0:01:50]}  Bh7 {[%clk 0:01:53]} 16. d5 {[%clk 0:01:51]}  cxd5 {[%clk 0:01:34]} 17. cxd5 {[%clk 0:01:51]}  Nxd5 {[%clk 0:01:31]} 18. Nxd5 {[%clk 0:01:50]}  exd5 {[%clk 0:01:30]} 19. Qxd5 {[%clk 0:01:49]}  Qxd5 {[%clk 0:01:23]} 20. Bxd5 {[%clk 0:01:50]}  a5 {[%clk 0:00:53]} 21. Rac1 {[%clk 0:01:41]}  Rfd8 {[%clk 0:00:36]} 22. Rfd1 {[%clk 0:01:21]}  Bf6 {[%clk 0:00:34]} 23. Bxb7 {[%clk 0:01:05]}  Rxd1+ {[%clk 0:00:32]} 24. Rxd1 {[%clk 0:01:05]}  Rb8 {[%clk 0:00:32]} 25. Rd7 {[%clk 0:01:01]}  Bxb2 {[%clk 0:00:32]} 26. Bd5 {[%clk 0:00:52]}  Bg6 {[%clk 0:00:29]} 27. f4 {[%clk 0:00:47]}  Bb1 {[%clk 0:00:26]} 28. Bxf7+ {[%clk 0:00:41]}  Kh8 {[%clk 0:00:27]} 29. Be6 {[%clk 0:00:33]}  a4 {[%clk 0:00:26]} 30. f5 {[%clk 0:00:32]}  Bf6 {[%clk 0:00:24]} 31. Ra7 {[%clk 0:00:28]}  Bc2 {[%clk 0:00:23]} 32. Kf2 {[%clk 0:00:26]}  Rd8 {[%clk 0:00:17]} 33. Kf3 {[%clk 0:00:23]}  Bd1+ {[%clk 0:00:17]} 34. Kf2 {[%clk 0:00:22]}  Bh4+ {[%clk 0:00:16]} 35. Kg2 {[%clk 0:00:21]}  Bc2 {[%clk 0:00:15]} 36. Rd7 {[%clk 0:00:19]}  Be4+ {[%clk 0:00:15]} 37. Kf1 {[%clk 0:00:18]}  Rxd7 {[%clk 0:00:14]} 38. Bxd7 {[%clk 0:00:18]}  Bd5 {[%clk 0:00:15]} 39. Be6 {[%clk 0:00:14]}  Bf3 {[%clk 0:00:14]} 40. Bd4 {[%clk 0:00:13]}  Bd1 {[%clk 0:00:12]} 41. Bf2 {[%clk 0:00:11]}  Bf6 {[%clk 0:00:11]} 42. Ke1 {[%clk 0:00:11]}  Bc2 {[%clk 0:00:11]} 43. Kd2 {[%clk 0:00:11]}  Bb1 {[%clk 0:00:11]} 44. Ke3 {[%clk 0:00:10]}  a3 {[%clk 0:00:11]} 45. Kf4 {[%clk 0:00:09]}  Be7 {[%clk 0:00:11]} 46. Bd4 {[%clk 0:00:09]}  Kh7 {[%clk 0:00:11]} 47. Kg3 {[%clk 0:00:08]}  Bd6+ {[%clk 0:00:11]} 48. Kf3 {[%clk 0:00:08]}  Be7 {[%clk 0:00:11]} 49. Bf2 {[%clk 0:00:08]}  Bc2 {[%clk 0:00:10]} 50. Bd4 {[%clk 0:00:08]}  Bd1+ {[%clk 0:00:10]} 51. Kf4 {[%clk 0:00:08]}  Bd6+ {[%clk 0:00:11]} 52. Be5 {[%clk 0:00:07]}  Be7 {[%clk 0:00:11]} 53. Ke3 {[%clk 0:00:06]}  Bc5+ {[%clk 0:00:11]} 54. Bd4 {[%clk 0:00:06]}  Be7 {[%clk 0:00:11]} 55. Bd5 {[%clk 0:00:06]}  Bc2 {[%clk 0:00:10]} 56. Kd2 {[%clk 0:00:07]}  Ba4 {[%clk 0:00:09]} 57. Kc3 {[%clk 0:00:06]}  Bb5 {[%clk 0:00:09]} 58. Bg2 {[%clk 0:00:03]}  Kg8 {[%clk 0:00:09]} 59. Kb3 {[%clk 0:00:03]}  Kh7 {[%clk 0:00:09]} 60. Bc3 {[%clk 0:00:04]}  Be2 {[%clk 0:00:08]} 61. Bb4 {[%clk 0:00:04]}  Bf6 {[%clk 0:00:07]} 62. Kxa3 {[%clk 0:00:04]}  h5 {[%clk 0:00:07]} 63. gxh5 {[%clk 0:00:04]}  Kh6 {[%clk 0:00:07]} 64. Bd2+ {[%clk 0:00:04]}  Kxh5 {[%clk 0:00:08]} 65. Kb3 {[%clk 0:00:04]}  Kh4 {[%clk 0:00:08]} 66. Be4 {[%clk 0:00:05]}  Kxh3 {[%clk 0:00:08]} 67. a4 {[%clk 0:00:05]}  Kg4 {[%clk 0:00:08]} 68. Kb4 {[%clk 0:00:05]}  Be7+ {[%clk 0:00:08]} 69. Ka5 {[%clk 0:00:04]}  Bd8+ {[%clk 0:00:08]} 70. Kb4 {[%clk 0:00:04]}  Be7+ {[%clk 0:00:09]} 71. Kb3 {[%clk 0:00:05]}  Bd1+ {[%clk 0:00:09]} 72. Bc2 {[%clk 0:00:03]}  Bxc2+ {[%clk 0:00:09]} 73. Kxc2 {[%clk 0:00:04]}  Kxf5 {[%clk 0:00:09]} 74. a5 {[%clk 0:00:04]}  Ke6 {[%clk 0:00:08]} 75. a6 {[%clk 0:00:04]}  Bc5 {[%clk 0:00:08]} 76. Kd3 {[%clk 0:00:04]}  Kd7 {[%clk 0:00:09]} 77. Be3 {[%clk 0:00:05]}  Bxe3 {[%clk 0:00:08]} 78. Kxe3 {[%clk 0:00:04]}  Kc7 {[%clk 0:00:09]} 79. a7 {[%clk 0:00:05]}  Kb7 {[%clk 0:00:09]} 80. Kf4 {[%clk 0:00:05]}  Kxa7 {[%clk 0:00:09]} 81. Kg5 {[%clk 0:00:06]}  Kb6 {[%clk 0:00:10]} 82. Kg6 {[%clk 0:00:07]}  Kc5 {[%clk 0:00:11]} 83. Kxg7 {[%clk 0:00:08]} 1/2-1/2


[Site "https://www.chess.com"]

[Event "Titled Tuesday Blitz April 11 Early 2023"]
[White "Yuan, Qingyu"]
[Black "Duda, Jan-Krzysztof"]
[WhiteFideId "8609772"]
[BlackFideId "1170546"]
[WhiteElo "2359"]
[BlackElo "2790"]
[Result "0-1"]
[Round "08"]
[TimeControl "180+2"]
[Date "2023.04.11"]
[WhiteClock "0:00:07"]
[BlackClock "0:00:46"]

1. e4 {[%clk 0:03:00]}  c6 {[%clk 0:02:59]} 2. d4 {[%clk 0:03:01]}  d5 {[%clk 0:03:00]} 3. exd5 {[%clk 0:03:01]}  cxd5 {[%clk 0:03:01]} 4. Bd3 {[%clk 0:03:02]}  Nc6 {[%clk 0:03:01]} 5. c3 {[%clk 0:03:02]}  Nf6 {[%clk 0:03:02]} 6. h3 {[%clk 0:03:03]}  g6 {[%clk 0:02:59]} 7. Nf3 {[%clk 0:03:03]}  Bf5 {[%clk 0:03:00]} 8. O-O {[%clk 0:03:02]}  Bxd3 {[%clk 0:02:58]} 9. Qxd3 {[%clk 0:03:02]}  e6 {[%clk 0:02:58]} 10. Bf4 {[%clk 0:03:00]}  h6 {[%clk 0:02:56]} 11. Ne5 {[%clk 0:02:50]}  Nxe5 {[%clk 0:02:50]} 12. Bxe5 {[%clk 0:02:46]}  a6 {[%clk 0:02:49]} 13. Nd2 {[%clk 0:02:41]}  Bd6 {[%clk 0:02:47]} 14. Qf3 {[%clk 0:02:32]}  Bxe5 {[%clk 0:02:46]} 15. dxe5 {[%clk 0:02:33]}  Nd7 {[%clk 0:02:46]} 16. Qf4 {[%clk 0:02:14]}  Qg5 {[%clk 0:02:37]} 17. Qxg5 {[%clk 0:02:06]}  hxg5 {[%clk 0:02:37]} 18. Nf3 {[%clk 0:02:07]}  Ke7 {[%clk 0:02:36]} 19. Rfe1 {[%clk 0:01:57]}  Rh5 {[%clk 0:02:33]} 20. Rad1 {[%clk 0:01:53]}  b5 {[%clk 0:02:31]} 21. Rd4 {[%clk 0:01:50]}  Nc5 {[%clk 0:02:31]} 22. Rg4 {[%clk 0:01:41]}  Ne4 {[%clk 0:02:19]} 23. Re2 {[%clk 0:01:33]}  Rc8 {[%clk 0:02:18]} 24. Nd2 {[%clk 0:01:29]}  Nc5 {[%clk 0:02:10]} 25. Nf3 {[%clk 0:01:29]}  Ne4 {[%clk 0:01:39]} 26. Nd2 {[%clk 0:01:27]}  Nxd2 {[%clk 0:01:33]} 27. Rxd2 {[%clk 0:01:27]}  Rc4 {[%clk 0:01:34]} 28. Rdd4 {[%clk 0:01:21]}  f6 {[%clk 0:01:24]} 29. exf6+ {[%clk 0:01:15]}  Kxf6 {[%clk 0:01:25]} 30. Rxc4 {[%clk 0:01:04]}  bxc4 {[%clk 0:01:26]} 31. b3 {[%clk 0:01:04]}  cxb3 {[%clk 0:01:14]} 32. axb3 {[%clk 0:01:05]}  Rh7 {[%clk 0:01:14]} 33. Ra4 {[%clk 0:00:48]}  Rb7 {[%clk 0:01:11]} 34. Rxa6 {[%clk 0:00:31]}  Rxb3 {[%clk 0:01:12]} 35. Rc6 {[%clk 0:00:29]}  Rb2 {[%clk 0:01:09]} 36. f3 {[%clk 0:00:19]}  Rc2 {[%clk 0:01:06]} 37. Rc5 {[%clk 0:00:19]}  Ke5 {[%clk 0:01:05]} 38. Kf1 {[%clk 0:00:14]}  Kf4 {[%clk 0:01:01]} 39. Rc6 {[%clk 0:00:15]}  e5 {[%clk 0:01:02]} 40. Rxg6 {[%clk 0:00:11]}  Rxc3 {[%clk 0:00:58]} 41. Rd6 {[%clk 0:00:06]}  Rc1+ {[%clk 0:00:49]} 42. Ke2 {[%clk 0:00:05]}  Rc2+ {[%clk 0:00:50]} 43. Kf1 {[%clk 0:00:06]}  d4 {[%clk 0:00:50]} 44. Kg1 {[%clk 0:00:04]}  Kg3 {[%clk 0:00:48]} 45. Kf1 {[%clk 0:00:04]}  Rxg2 {[%clk 0:00:47]} 46. Re6 {[%clk 0:00:02]}  Rf2+ {[%clk 0:00:39]} 47. Ke1 {[%clk 0:00:02]}  Rxf3 {[%clk 0:00:39]} 48. Rxe5 {[%clk 0:00:02]}  Re3+ {[%clk 0:00:40]} 49. Rxe3+ {[%clk 0:00:02]}  dxe3 {[%clk 0:00:40]} 50. Ke2 {[%clk 0:00:03]}  Kxh3 {[%clk 0:00:41]} 51. Kxe3 {[%clk 0:00:03]}  g4 {[%clk 0:00:42]} 52. Kf2 {[%clk 0:00:04]}  g3+ {[%clk 0:00:41]} 53. Kg1 {[%clk 0:00:04]}  g2 {[%clk 0:00:42]} 54. Kf2 {[%clk 0:00:04]}  Kh2 {[%clk 0:00:43]} 55. Kf3 {[%clk 0:00:05]}  g1=Q {[%clk 0:00:44]} 56. Kf4 {[%clk 0:00:05]}  Qg6 {[%clk 0:00:44]} 57. Ke5 {[%clk 0:00:05]}  Kg1 {[%clk 0:00:45]} 58. Kf4 {[%clk 0:00:06]}  Kf2 {[%clk 0:00:46]} 59. Ke5 {[%clk 0:00:06]}  Ke3 {[%clk 0:00:47]} 60. Kd5 {[%clk 0:00:07]}  Qe4+ {[%clk 0:00:46]} 0-1


[Site "https://www.chess.com"]

[Event "Titled Tuesday Blitz April 11 Early 2023"]
[White "Svane, Rasmus"]
[Black "Rodshtein, Maxim"]
[WhiteFideId "4657101"]
[BlackFideId "2806851"]
[WhiteElo "2597"]
[BlackElo "2555"]
[Result "1-0"]
[Round "08"]
[TimeControl "180+2"]
[Date "2023.04.11"]
[WhiteClock "0:00:15"]
[BlackClock "0:00:07"]

1. Nf3 {[%clk 0:03:00]}  g6 {[%clk 0:02:58]} 2. e4 {[%clk 0:03:00]}  Bg7 {[%clk 0:02:58]} 3. d4 {[%clk 0:03:01]}  d6 {[%clk 0:02:59]} 4. Bd3 {[%clk 0:03:01]}  Nf6 {[%clk 0:02:59]} 5. O-O {[%clk 0:03:01]}  O-O {[%clk 0:02:59]} 6. h3 {[%clk 0:03:02]}  Nc6 {[%clk 0:02:59]} 7. d5 {[%clk 0:02:59]}  Nb4 {[%clk 0:02:58]} 8. c4 {[%clk 0:02:59]}  e5 {[%clk 0:02:56]} 9. dxe6 {[%clk 0:02:53]}  Bxe6 {[%clk 0:02:49]} 10. Nc3 {[%clk 0:02:53]}  c5 {[%clk 0:02:39]} 11. Bf4 {[%clk 0:02:50]}  Qb6 {[%clk 0:02:19]} 12. Be2 {[%clk 0:02:31]}  Rad8 {[%clk 0:02:14]} 13. Qd2 {[%clk 0:02:30]}  Rfe8 {[%clk 0:02:12]} 14. Rfe1 {[%clk 0:02:28]}  Nc6 {[%clk 0:02:03]} 15. Rad1 {[%clk 0:02:25]}  Ne5 {[%clk 0:01:54]} 16. b3 {[%clk 0:02:25]}  Nfd7 {[%clk 0:01:44]} 17. Bg5 {[%clk 0:02:21]}  Ra8 {[%clk 0:00:54]} 18. Nb5 {[%clk 0:02:18]}  Nxf3+ {[%clk 0:00:54]} 19. Bxf3 {[%clk 0:02:19]}  Ne5 {[%clk 0:00:54]} 20. Qxd6 {[%clk 0:01:38]}  Nxf3+ {[%clk 0:00:52]} 21. gxf3 {[%clk 0:01:39]}  h6 {[%clk 0:00:41]} 22. Be3 {[%clk 0:01:30]}  Qa5 {[%clk 0:00:39]} 23. Qd2 {[%clk 0:01:24]}  Qxd2 {[%clk 0:00:32]} 24. Rxd2 {[%clk 0:01:19]}  Bxh3 {[%clk 0:00:32]} 25. Bxc5 {[%clk 0:00:59]}  b6 {[%clk 0:00:30]} 26. Bd4 {[%clk 0:00:57]}  Bf8 {[%clk 0:00:22]} 27. Nc7 {[%clk 0:00:40]}  Bb4 {[%clk 0:00:21]} 28. Red1 {[%clk 0:00:41]}  Bxd2 {[%clk 0:00:20]} 29. Rxd2 {[%clk 0:00:42]}  Rad8 {[%clk 0:00:19]} 30. Nxe8 {[%clk 0:00:42]}  Rxe8 {[%clk 0:00:20]} 31. Kh2 {[%clk 0:00:39]}  Be6 {[%clk 0:00:20]} 32. Bf6 {[%clk 0:00:38]}  g5 {[%clk 0:00:20]} 33. Kg3 {[%clk 0:00:38]}  Kh7 {[%clk 0:00:21]} 34. f4 {[%clk 0:00:37]}  gxf4+ {[%clk 0:00:21]} 35. Kxf4 {[%clk 0:00:38]}  Rg8 {[%clk 0:00:21]} 36. f3 {[%clk 0:00:38]}  h5 {[%clk 0:00:22]} 37. Rh2 {[%clk 0:00:37]}  Kh6 {[%clk 0:00:18]} 38. Ke5 {[%clk 0:00:26]}  Rg3 {[%clk 0:00:18]} 39. f4 {[%clk 0:00:25]}  Bg4 {[%clk 0:00:18]} 40. f5 {[%clk 0:00:25]}  Re3 {[%clk 0:00:17]} 41. Kd4 {[%clk 0:00:25]}  Re1 {[%clk 0:00:17]} 42. b4 {[%clk 0:00:22]}  Rd1+ {[%clk 0:00:17]} 43. Ke5 {[%clk 0:00:21]}  Rc1 {[%clk 0:00:17]} 44. Kd5 {[%clk 0:00:21]}  Rd1+ {[%clk 0:00:17]} 45. Bd4 {[%clk 0:00:22]}  Bf3 {[%clk 0:00:17]} 46. c5 {[%clk 0:00:22]}  bxc5 {[%clk 0:00:17]} 47. bxc5 {[%clk 0:00:23]}  Kg5 {[%clk 0:00:17]} 48. c6 {[%clk 0:00:20]}  Kf4 {[%clk 0:00:17]} 49. Rh4+ {[%clk 0:00:20]}  Kg3 {[%clk 0:00:18]} 50. c7 {[%clk 0:00:17]}  Rc1 {[%clk 0:00:18]} 51. Bc5 {[%clk 0:00:18]}  Rd1+ {[%clk 0:00:07]} 52. Ke5 {[%clk 0:00:15]} 1-0


[Site "https://www.chess.com"]